Cogmind - Beta 13 @@@ ROGUE MODE // 2024.04.26 @ 13:01:31 Player: Wesmed Result: Self-destructed Performance ------------- Evolutions (1) 500 Regions Visited (2) 400 Robots Destroyed (36) 180 Value Destroyed (427) 427 Prototype IDs (0) 0 Alien Tech Used (0) 0 Bonus (0) 0 TOTAL SCORE: 1507 Bonus ------- None Cogmind --------- Core Integrity 277/400 Matter 300/300 Energy 100/100 System Corruption 0% Temperature Cool (0) Movement Rolling (150) Ox4 Location -9/Materials Parts ------- > --- POWER (1) -------- (None) > --- PROPULSION (2) --- Armored Wheel > --- UTILITY (4) ------ High-capacity Storage Unit Weapon Shielding Weapon Shielding Hardened Light Armor Plating > --- WEAPON (2) ------- Heavy Assault Rifle Autogun > --- INVENTORY (20) --- Ion Engine Ion Engine Light Ion Engine Wheel Wheel Armored Wheel Armored Wheel Heat Sink Heat Sink Heat Sink Structural Scanner Terrain Scan Processor Heavy EM Pulse Gun Autogun Autogun Autogun EMP Blaster Rocket Launcher Datajack Mining Laser Peak State ------------ > --- POWER ------------ Light Ion Engine > --- PROPULSION ------- Armored Wheel Armored Wheel > --- UTILITY ---------- High-capacity Storage Unit Weapon Shielding Weapon Shielding Hardened Light Armor Plating > --- WEAPON ----------- Heavy Assault Rifle Autogun > --- INVENTORY -------- Ion Engine Ion Engine Light Ion Engine Wheel Wheel Wheel Armored Wheel Armored Wheel Heat Sink Heat Sink Structural Scanner Terrain Scan Processor EM Pulse Gun Heavy EM Pulse Gun Beam Rifle Light Assault Rifle Autogun Autogun Datajack Mining Laser [Rating: 16] Favorites ----------- Power Light Ion Engine Engine Light Ion Engine Propulsion Wheel Wheel Wheel Utility Small Storage Unit Device Improved Terrain Scanner Storage Small Storage Unit Protection Weapon Shielding Weapon Assault Rifle Ballistic Gun Assault Rifle Build | -11 -10 -9 ------- Run | Yrd Mat Mat Slots Evolved 2 | . . 2 Power . | . . . Propulsion . | . . . Utility 2 | . . 2 Weapon . | . . . Parts Attached 21 | 6 5 10 Power 3 | 1 1 1 Engine 3 | 1 1 1 Core . | . . . Reactor . | . . . Propulsion 7 | 2 2 3 Treads . | . . . Leg . | . . . Wheel 7 | 2 2 3 Hover . | . . . Flight . | . . . Utility 6 | 2 1 3 Device 1 | 1 . . Storage 2 | 1 1 . Processor . | . . . Hackware . | . . . Protection 3 | . . 3 Artifact . | . . . Weapon 5 | 1 1 3 Energy Gun . | . . . Energy Cannon . | . . . Ballistic Gun 5 | 1 1 3 Ballistic Cannon . | . . . Launcher . | . . . Special Weapon . | . . . Impact Weapon . | . . . Slashing Weapon . | . . . Piercing Weapon . | . . . Special Melee Weapon . | . . . Unidentified Prototypes . | . . . Parts Lost 3 | . 1 2 Power 1 | . . 1 Propulsion 1 | . . 1 Utility 1 | . 1 . Weapon . | . . . Highest Loss Streak 2 | . 1 2 To Critical Strikes 1 | . . 1 Average Slot Usage (%) 91 | . 90 93 Engine 11 | . 14 9 Wheel 24 | . 28 21 Device 2 | . 5 . Storage 12 | . 14 11 Protection 14 | . . 28 Ballistic Gun 24 | . 27 22 Naked Turns . | . . . Heaviest Build 56 | 11 47 56 Greatest Support 24 | 20 20 24 Greatest Overweight (x) 4 | . 2 4 Average Overweight (x) 1 | . 1 2 Largest Inventory Capacity 20 | 8 20 20 Average Capacity 13 | 7 16 20 Most Carried 20 | 8 17 20 Average Carried 11 | 7 12 19 Final Capacity 20 | 8 20 20 Final Carried 20 | 8 17 20 Class Distribution -------------------- 100% | Mutant Dominant Class ---------------- Mutant | -10/Materials Mutant | -9/Materials Resources | -11 -10 -9 ----------- Run | Yrd Mat Mat Matter Collected 944 | 330 151 463 Remotely . | . . . Salvage Created 829 | 183 157 489 Parts 80 | 18 19 43 Haulers Intercepted . | . . . Recyclers Shooed 1 | 1 . . Parts Field Recycled . | . . . Retrieved Matter . | . . . Parts Self-Destructed . | . . . Prevented . | . . . Kills | -11 -10 -9 ------- Run | Yrd Mat Mat Combat Hostiles Destroyed 20 | . 7 13 Guns 20 | . 7 13 Classes Destroyed 8 | 3 1 4 Worker 5 | 1 1 3 Builder 1 | . . 1 Tunneler 8 | 5 1 2 Recycler 1 | 1 . . Mechanic 1 | . . 1 Swarmer 15 | . 7 8 Grunt 3 | . . 3 Sentry 2 | . . 2 Best Kill Streak 6 | 3 6 6 Combat Bots Only 6 | . 6 5 Max Kills in Single Turn 2 | 1 2 1 Gunslinging 1 | . 1 . Exploded . | . . . Melee . | . . . Uniques/NPCs Destroyed . | . . . Combat | -11 -10 -9 -------- Run | Yrd Mat Mat Hostile Shots Fired 137 | . 31 106 Missed 38 | . 7 31 Damage Taken 894 | . 185 709 Core 164 | . 41 123 Absorbed by Shields . | . . . Redirected to Shielding 60 | . . 60 Core Remaining (%) 91 | 100 83 . Volleys Fired 111 | 28 34 49 Largest 2 | 1 2 2 Hottest 46 | 20 40 46 Shots Fired 194 | 28 68 98 Gun 194 | 28 68 98 Cannon . | . . . Launcher . | . . . Special . | . . . Kinetic 194 | 28 68 98 Thermal . | . . . Explosive . | . . . Electromagnetic . | . . . Robot Hit Streak 7 | 4 4 7 Robot Miss Streak 6 | 4 4 6 Penetration Max . | . . . Secondary Targets 2 | . 1 1 Max Gunslinging Chain 1 | . 1 1 Shots Hit Robots 103 | 17 36 50 Core Hits 52 | 8 17 27 Critical Kills . | . . . Critical Parts Destroyed . | . . . Critical Strikes . | . . . Melee Attacks . | . . . Impact . | . . . Slashing . | . . . Piercing . | . . . Sneak Attacks . | . . . Combat Hostiles . | . . . Follow-up Attacks . | . . . Damage Inflicted 1461 | 223 435 803 Guns 1461 | 223 435 803 Cannons . | . . . Explosions . | . . . Melee . | . . . Ramming . | . . . Kinetic 1461 | 223 435 803 Thermal . | . . . Explosive . | . . . Electromagnetic . | . . . Impact . | . . . Slashing . | . . . Piercing . | . . . Highest Corruption 2 | . 2 . Average Corruption 2 | . 2 . Corruption Purged . | . . . Corruption Blocked . | . . . Effects 6 | . 6 . Message Errors 1 | . 1 . Heat Flow Errors 1 | . 1 . Energy Discharges 3 | . 3 . Data Loss (major) 1 | . 1 . Overload Shots . | . . . Overflow Damage . | . . . Projectiles . | . . . Explosions . | . . . Melee . | . . . Knockbacks . | . . . Impact . | . . . Kinetic . | . . . Secondary . | . . . Self-Inflicted Damage . | . . . Shots . | . . . Rammed . | . . . Targets Rammed . | . . . Kicked . | . . . Crushed . | . . . Highest Temperature 149 | . 149 32 Average Temperature 16 | . 79 10 Received Heat Transfer 150 | . . 150 Siege Activations . | . . . Robots Corrupted . | . . . Combat Hostiles . | . . . Parts Fried . | . . . Impact Corruptions . | . . . Robots Melted . | . . . Combat Hostiles . | . . . Parts Melted . | . . . Heat Transferred . | . . . Parts Sabotaged . | . . . Parts Stolen . | . . . Parts Stripped . | . . . Power Chain Reactions . | . . . Alert | -11 -10 -9 ------- Run | Yrd Mat Mat Peak Influence 294 | 35 261 294 Initial 40 | . . 40 Average 56 | 7 98 114 Maximum Alert Level 1 | . 1 1 Low Security (%) 91 | 100 75 89 Level 1 8 | . 24 10 Level 2 . | . . . Level 3 . | . . . Level 4 . | . . . Level 5 . | . . . High Security . | . . . Max Security . | . . . Squads Dispatched 1 | . . 1 Investigation . | . . . Extermination . | . . . Reinforcement 1 | . . 1 Assault . | . . . Garrison . | . . . Intercept . | . . . Searches Triggered . | . . . Construction Impeded . | . . . Haulers Reinforced . | . . . Active Scanning Responses . | . . . Cargo Convoy Interrupts . | . . . Stealth | -11 -10 -9 --------- Run | Yrd Mat Mat Distress Signals 7 | . 3 4 Communications Jammed . | . . . Distress Signals . | . . . Times Spotted 40 | . 19 21 Peak Tracking Total 7 | . 7 7 Tactical Retreats 5 | . 2 3 Traps | -11 -10 -9 ------- Run | Yrd Mat Mat Traps Triggered 1 | . 1 . Indirectly . | . . . Trap Hack Attempts . | . . . Triggered . | . . . Disarmed . | . . . Reprogrammed . | . . . Reused . | . . . Traps Extracted . | . . . Installed . | . . . Triggered . | . . . Machines | -11 -10 -9 ---------- Run | Yrd Mat Mat Machines Disabled . | . . . Max in Single Turn . | . . . Machines Repaired . | . . . Machines Dismantled . | . . . Machines Sabotaged . | . . . Overloaded Fab Kills . | . . . Hacking | -11 -10 -9 --------- Run | Yrd Mat Mat Machines Accessed 6 | . 3 3 Terminals 6 | . 3 3 Fabricators . | . . . Repair Stations . | . . . Recycling Units . | . . . Scanalyzers . | . . . Garrison Access . | . . . Total Hacks 18 | . 8 10 Successful 6 | . 3 3 Failed 11 | . 4 7 Catastrophic . | . . . Database Lockouts 1 | . 1 . Manual 19 | . 9 10 Terminals 18 | . 8 10 Fabricators . | . . . Repair Stations . | . . . Recycling Units . | . . . Scanalyzers . | . . . Garrison Access . | . . . Terminal Hacks 1 | . 1 . Part Schematic 1 | . 1 . Fabricator Hacks . | . . . Repair Station Hacks . | . . . Recycling Unit Hacks . | . . . Scanalyzer . | . . . Garrison Access Hacks . | . . . Unauthorized Hacks 5 | . 2 3 Terminals 5 | . 2 3 Botnet 4 | . 1 3 Operators 1 | . 1 . Fabricators . | . . . Repair Stations . | . . . Recycling Units . | . . . Scanalyzers . | . . . Garrison Access . | . . . Data Cores Recovered . | . . . Used . | . . . Hacking Detections 6 | . 3 3 Full Trace Events . | . . . Feedback Events . | . . . Feedback Blocked . | . . . Robot Schematics Acquired . | . . . Robots Built . | . . . Authchips . | . . . Time . | . . . Total Robot Build Rating . | . . . Part Schematics Acquired 1 | . 1 . Parts Built . | . . . Authchips . | . . . Time . | . . . Total Part Build Rating . | . . . Parts Repaired . | . . . Time . | . . . Parts Recycled . | . . . Recycled Matter . | . . . Retrieved Matter . | . . . Retrieved Components . | . . . Parts Scanalyzed . | . . . Part Schematics Acquired . | . . . Parts Damaged . | . . . Bothacking | -11 -10 -9 ------------ Run | Yrd Mat Mat Used RIF Installer . | . . . Robots Hacked . | . . . Non-combat . | . . . Combat . | . . . Robot Hacks Applied . | . . . Relay Couplers Released . | . . . Fabnet Peak Effective % . | . . . Robots Rewired . | . . . Allies Hacked . | . . . Hacks Repelled . | . . . Allies | -11 -10 -9 -------- Run | Yrd Mat Mat Total Allies . | . . . Largest Group . | . . . Highest-Rated Group . | . . . Highest-Rated Ally . | . . . Total Orders . | . . . Ally Attacks . | . . . Total Damage . | . . . Kills . | . . . Allies Corrupted . | . . . Allies Melted . | . . . Intel | -11 -10 -9 ------- Run | Yrd Mat Mat Robot Analysis Total . | . . . Derelict Logs Recovered . | . . . Drone Launches . | . . . Drone Recoveries . | . . . Exploration | -11 -10 -9 ------------- Run | Yrd Mat Mat Turns Passed 2673 | 1350 641 682 Spaces Moved 1299 | 333 543 423 Core 4 | 4 . . Treads . | . . . Legs . | . . . Wheels 1295 | 329 543 423 Hover . | . . . Flight . | . . . Fastest Speed 50 | 50 80 110 Average Speed 100 | 79 97 118 Slowest Speed 150 | 80 110 150 Overloaded Moves . | . . . Propulsion Burnouts . | . . . Robots Hopped . | . . . Cave-ins Triggered . | . . . Exploration Rate (%) 38 | 21 57 37 Regions Visited 2 Branch Regions . Pre-discovered Areas . | . . . Known Exits Taken . | . . . Unknown Exits Taken 2 | 1 1 . Scrap Searched . | . . . Spaces Dug . | . . . Terrain Destroyed . | . . . Melee . | . . . Projectile . | . . . AOE . | . . . Terrain Rammed . | . . . Walls Destroyed . | . . . Machines Disabled . | . . . Actions | -11 -10 -9 --------- Run | Yrd Mat Mat Total 2508 | 1387 590 531 Wait 1021 | 1011 . 10 Move 1297 | 332 542 423 Hop . | . . . Pick Up 35 | 9 7 19 Fast Attach 8 | 6 1 1 Attach 2 | . . 2 Detach . | . . . Swap 11 | . 4 7 Drop 23 | 1 2 20 Fire 111 | 28 34 49 Melee . | . . . Ram . | . . . Kick . | . . . Crush . | . . . Escape Stasis . | . . . Rewire . | . . . Trap . | . . . Miscellaneous . | . . . Route ------- -11/Scrapyard -10/Materials (discovered 2 exits: *Mat x2) -9/Materials History --------- Turn | Location | Event 20 | -11/Scrapyard | Discovered new exit (range 15) 1351 | -11/Scrapyard | Entered Materials 1352 | -10/Materials | Build established: Mutant 1453 | -10/Materials | Discovered new exit (range 5) 1543 | -10/Materials | Discovered new exit (range 15) 1596 | -10/Materials | Central database locked down 1992 | -10/Materials | Entered another Materials area 1992 | -9/Materials | Evolved 2 slots: Utility x2 2674 | -9/Materials | Self-destructed Last Messages --------------- 02593_ Lgt. Ion Engine destroyed. 02597_ S-10 Pest destroyed. 02598_ Acquired 9 matter. 02600_ S-10 Pest destroyed. 02601_ Acquired 6 matter. 02609_ Destroyed Flight Unit. 02618_ Critical hit (Destroy). 02618_ Arm. Wheel destroyed. 02620_ S-10 Pest destroyed. 02621_ Acquired 17 matter. 02625_ S-10 Pest destroyed. 02625_ Switching to secondary target: S-10 Pest. 02628_ S-10 Pest destroyed. 02633_ Acquired 19 matter. 02639_ Acquired 10 matter. 02645_ Acquired 15 matter. 02646_ Acquired 5 matter. 02651_ T-07 Excavator destroyed. 02653_ Acquired 7 matter. 02654_ W-16 Scout sends out distress signal. Map ----- +----------------------------------------------------+ | ?????????????????????????????????????????????????? | | ?????????????????????????????????????????????????? | | ?????????????????????????????????????????????????? | | ?????????????????????????????????????????????????? | | ?????????????????????????????????????????????????? | | ?????????????????????????????????????????????????? | | ?????????????????????????????????????????????????? | | ?????????????????????????????????????????????????? | | ?????????????????????????????????????????????????? | | ?????????????????????????????????????????????????? | | ?????????????????????????????????????????????????? | | ????????????????????????##???????????????????????? | | ???????????????????????? ????#??????????????????? | | ???????????????????????# ""? ???????????????????? | | ???????????????????????# """ #??????????????????? | | ???????????????????????# """ #??????????????????? | | ???????????????????????# #??????????????????? | | ???????????????????????#[[ #??????????????????? | | ???????????????????????Y[[ #??????????????????? | | ???????????????????????# #??????????????????? | | ???????????????????????# #??????????????????? | | ???????????????????????# "" #??????????????????? | | ???????????????????????# """#??????????????????? | | ???????????????????????# S"???????????????????? | | ?????????????????####### ?????????????????????? | | ?????????????????# = !##@######?????????????????? | | ?????????????????# #?????????????????? | | ?????????????????# T #?????????????????? | | ?????????????????# !! +?????????????????? | | ?????????????????#= !! ########### ??????? | | ?????????????????##### !! ! g ?????? | | ?????????????? ????# gw ?????? | | ?????????????? #?### """??????????? | | ?????????????# Y """??????????? | | ?????????????# ############ ### """??????????? | | ?????????????# ############+#??# ????????? | | ?????????????# # """ """ =%#??? ??????? | | ?????????????# # """""""""*|#?????????? ???????? | | ?????????????# + """"" #??????????????????? | | ?????????????# # %[ "% #??????????????????? | | ?????????????# # =[ " #??????????????????? | | ?????????????# ###+###########?????????????????? | | ?????????????# #?# ## #?????????????????? | | ?????????????# #?#=## "" #??????????????????? | | ?????????????# #?# ## T" #??????????????????? | | ?????????????# ###[## "" #??????????????????? | | ?????????????# *=# #??????????????????? | | ?????????????# ![%+ #??????????????????? | | ?????????????# !=# """ #??????????????????? | | ????##########% # """ #??????????????????? | +----------------------------------------------------+ Best States ------------- Heat Dissipation 28 Energy Generation 10 Energy Capacity 125 Matter Stores 300 Matter Capacity 300 Sight Range 16 Terrain Scan Range 16 Terrain Scan Density 10 Armor Coverage 150 Weapon Shielding 33 Evasion (%) 44 Item Schematics ----------------- Huge Storage Unit | -10/Materials | Hacked Robot Schematics ------------------ None Fabricated ------------ Nothing Alien Tech Used ----------------- None Achievements -------------- None Challenges ------------ None Game ------ Seed LinearWardroneReplicator Manual? 0 Play Time 00:23:14 Cumulative 23.7 hours Start 2024.04.26 @ 11:55:44 End 2024.04.26 @ 13:01:31 Sessions 1 Manual Loads 0 Difficulty Rogue Special Mode None Game No. 30 Rogue 22 Adventurer 8 Explorer 0 Win Type - Total 0 Types 0/0/0/0/0/0/0/0/0 Lore% 26 Gallery% 32 Achievement% 25 Wizard Run 0 Options --------- Layout 1 ASCII 0 Keyboard 0 Movement Arrows Keybinds 0 Fullscreen 1 Font 16/SmallcapsGlow Map View 55x38 Zoom Use 0% Tactical HUD 1 Map Filters NONE Filters NONE Steam 1 RUN: fd04499f-7201-4a19-bcb9-84dde2ef26ef